[Event "98th Caplin Hastings Masters 2024-25"]
[Site "Hastings"]
[Date "2025.01.02"]
[Round "8.7"]
[White "Bazakutsa, Svyatoslav"]
[Black "Nielsen, Andre"]
[Result "1-0"]
[ECO "E44"]
[WhiteElo "2484"]
[BlackElo "2276"]
[Annotator "TA"]
[PlyCount "159"]
[EventDate "2024.12.23"]
[EventType "swiss"]
[EventCountry "ENG"]
[SourceTitle "playchess.com"]
[Source "ChessBase"]
[SourceQuality "1"]
[TimeControl "5400+30"]

{[%evp 17,159,30,24,3,0,-10,6,-20,6,0,0,-2,-2,-8,-1,-5,14,14,45,20,38,24,20,19,26,9,9,9,9,9,11,0,14,14,37,0,25,23,50,58,55,39,49,42,66,62,58,68,64,67,112,102,104,86,81,32,39,31,26,31,31,26,30,34,34,34,32,26,21,7,24,26,51,57,59,49,85,85,85,85,101,74,72,27,41,20,49,49,72,66,77,8,94,0,0,0,66,66,66,0,66,66,191,191,350,350,350,350,353,363,354,383,347,391,402,402,402,402,914,583,564,301,575,567,29977,29976,29975,1955,4606,2856,4935,4627,1414,712,29985,29986,29987,29977,29995,29995,29995,378,29996,29997]} 1. d4 {[%emt 0:00:12]} Nf6 {[%emt 0:00:23]} 2. c4 {[%emt 0:00:09]} e6 {[%emt 0:00:29]} 3. Nc3 {[%emt 0:00:10]} Bb4 {[%emt 0:00:35]} 4. e3 {[%emt 0:00:16]} b6 {[%emt 0:01:10]} 5. Nge2 {[%emt 0:00:41]} Ne4 {[%emt 0:01:13]} 6. Qc2 {[%emt 0:00:26]} Bb7 {[%emt 0:00:24]} 7. a3 {[%emt 0:00:21]} Bxc3+ {[%emt 0:00:37]} 8. Nxc3 {[%emt 0:00:08]} Nxc3 {[%emt 0:00:12]} 9. Qxc3 {[%emt 0:00:10]} O-O {[%emt 0:02:41]} 10. h4 {[%emt 0:01:12]} d5 {[%emt 0:00:59]} 11. b3 {[%emt 0:07:28]} Nd7 {[%emt 0:01:40]} 12. Bb2 {[%emt 0:04:18] The position is equal.} f5 {[%emt 0:10:08]} (12... dxc4 {feels hotter.} 13. d5 f6 14. dxe6 Ne5) 13. O-O-O {[%emt 0:07:42]} a5 {[%emt 0:15:03]} 14. a4 {[%emt 0:15:57]} Rf7 {[%emt 0:12:48]} 15. f3 {[%emt 0:07:02]} Qe7 {[%emt 0:04:20]} 16. Kb1 {[%emt 0:03:06]} Nb8 {[%emt 0:03:26]} 17. Rc1 {[%emt 0:14:32]} c6 {[%emt 0:12:43]} 18. Bd3 {[%emt 0:14:24]} Na6 {[%emt 0:01:42]} 19. c5 {[%emt 0:02:30]} bxc5 {[%emt 0:08:08][%cal Oc5c4]} 20. Bxa6 {[%emt 0:01:14]} (20. Qxa5 Nb4 21. Qxc5 Qxc5 (21... Nxd3 $2 22. Qxe7 Rxe7 23. Rc3 $19) 22. Rxc5 Nxd3 $15) 20... cxd4 {[%emt 0:07:38]} 21. exd4 {[%emt 0:01:02] Bxb7 would now be deadly.} Rxa6 {[%emt 0:00:18]} 22. Ka2 {[%emt 0:04:03]} Bc8 {[%emt 0:01:42]} 23. Ba3 {[%emt 0:00:38]} Qc7 {[%emt 0:01:07]} 24. Qe3 {[%emt 0:06:05][%mdl 1024] White has compensation.} Bd7 {[%emt 0:02:42]} 25. Rhe1 {[%emt 0:03:09]} Qg3 {[%emt 0:02:20]} 26. h5 {[%emt 0:01:17]} Rf6 {[%emt 0:01:36]} 27. Qd2 {[%emt 0:01:35]} Qc7 {[%emt 0:03:20]} 28. Re5 {[%emt 0:00:57]} Ra8 {[%emt 0:00:50] Black is weak on the dark squares} 29. Be7 {[%emt 0:00:46]} Rf7 {[%emt 0:00:21]} 30. Bc5 {[%emt 0:00:10]} h6 {[%emt 0:01:41]} 31. g4 {[%emt 0:01:07] Black must now prevent g5.} Qd8 {[%emt 0:00:28]} 32. Rg1 {[%emt 0:02:10] And now gxf5 would win.} fxg4 {[%emt 0:01:58]} 33. fxg4 {[%emt 0:00:43][%cal Bf3g4,Bg4g5][%mdl 32]} Qf6 {[%emt 0:01:28]} 34. g5 {[%emt 0:00:51] White is much more active.} Qf2 {[%emt 0:00:07]} 35. Qxf2 {[%emt 0:00:01]} Rxf2+ {[%emt 0:00:06]} 36. Ka1 {[%emt 0:00:51]} (36. Ka3 $16 Kf7 37. g6+ Kf6 38. Bd6) 36... Kh8 $14 {[%emt 0:00:29]} 37. Re3 {[%emt 0:00:27]} hxg5 {[%emt 0:01:00][%cal Og5g4]} 38. Reg3 {[%emt 0:00:55]} Rf5 {[%emt 0:00:36]} 39. Bd6 {[%emt 0:00:34]} Kh7 {[%emt 0:00:44]} 40. Rxg5 {[%emt 0:00:31]} Rxg5 {[%emt 0:00:04]} 41. Rxg5 $11 {[%emt 0:00:02][%mdl 4096] Endgame. KRB-KRB} Be8 {[%emt 0:00:47]} 42. Kb2 {[%emt 0:00:53]} Ra7 {[%emt 0:00:32]} 43. Re5 {[%emt 0:00:31]} Bf7 {[%emt 0:00:48]} 44. Ka3 {[%emt 0:00:01]} Kh6 {[%emt 0:00:32]} 45. b4 {[%emt 0:00:46]} axb4+ {[%emt 0:00:18]} 46. Bxb4 {[%emt 0:00:02]} (46. Kxb4 Bxh5 47. Rxe6+ Kg5) 46... Bxh5 {[%emt 0:00:40]} 47. Bd2+ $1 {[%emt 0:00:29]} (47. Rxe6+ $6 Kh7 $11) 47... g5 {[%emt 0:00:10]} 48. Rxg5 {[%emt 0:00:11]} (48. Bxg5+ $6 Kg6 $11) 48... Bg6 {[%emt 0:00:51]} 49. Rxd5+ {[%emt 0:00:07]} Kg7 {[%emt 0:00:09]} 50. Rd6 {[%emt 0:00:14][%csl LRc6,LRe6]} Kf6 {[%emt 0:00:39]} 51. Bc3 {[%emt 0:01:42] d5+ is the strong threat.} Ke7 {[%emt 0:00:43]} 52. Bb4 {[%emt 0:00:02]} Be8 {[%emt 0:00:25][%cal Oa7a4]} 53. Bc5 {[%emt 0:00:33] Hoping for Rd5+.} (53. Rxc6+ Kd8 54. Rd6+ (54. Rxe6 Rxa4+ 55. Kb3 Ra1 $11) 54... Kc7 $11) 53... Ra8 {[%emt 0:00:27]} 54. Kb4 {[%emt 0:00:52]} (54. Rxc6+ Kf6 55. Rc7 Bxa4 $15) (54. Rd5+ $16 Kf6 55. Rd6) 54... Bd7 {[%emt 0:00:21] [#]} (54... Rb8+ $11 {remains equal.} 55. Ka3 Bd7) 55. a5 {[%emt 0:00:26]} (55. Rxc6+ $6 Kd8 56. Rd6 Rxa4+ 57. Kc3 Kc7 $11) ({White should play} 55. Rd5+ $1 $16 Kd8 56. Rg5) 55... Kd8 {[%emt 0:00:45]} 56. Bb6+ {[%emt 0:00:26]} Kc8 {[%emt 0:00:28]} (56... Ke7 $11 57. Bc5 Kd8) 57. Kc5 $14 {[%emt 0:01:09]} Ra6 {[%emt 0:00:26]} 58. Kb4 {[%emt 0:00:25]} Ra8 {[%emt 0:00:19]} 59. Kc3 {[%emt 0:00:04]} Be8 {[%emt 0:00:48] Loses the game.} ({Better is} 59... Rb8 $14) 60. Rxe6 $18 {[%emt 0:00:12]} Kd7 {[%emt 0:00:14]} (60... Kb7 61. Rh6 Ka6) 61. Rh6 {[%emt 0:00:24]} Bf7 {[%emt 0:00:42]} 62. Rh7 {[%emt 0:00:06]} Ke6 {[%emt 0:00:26]} 63. Kc4 {[%emt 0:00:28] aiming for Kc5.} Bg8 {[%emt 0:00:37]} 64. Rh6+ {[%emt 0:00:31]} Kd7+ {[%emt 0:00:19]} 65. Kc5 {[%emt 0:00:07]} Rf8 {[%emt 0:00:40]} 66. Rd6+ {[%emt 0:01:27]} (66. Rxc6 $2 {perishes.} Rf5+ 67. d5 Rxd5+ 68. Kc4 Kxc6 $19) 66... Kc8 {[%emt 0:00:08]} 67. Kxc6 {[%emt 0:00:17]} ({But not} 67. Rxc6+ Kb8 68. a6 Rf5+ 69. Kb4 Rf8 $18) 67... Kb8 {[%emt 0:00:47]} (67... Bb3 $142 68. a6 Kb8) 68. Rd7 {[%emt 0:00:26] d5 would kill now.} Rf6+ {[%emt 0:00:39]} 69. Kc5 {[%emt 0:00:09] Intending Rd8+ and mate.} Rf5+ {[%emt 0:00:09] [#]} 70. Kb4 $1 {[%emt 0:00:01] White wants to mate with a6.} Rf8 {[%emt 0:00:50]} 71. d5 {[%emt 0:01:22] Against Be6} Kc8 {[%emt 0:00:32]} 72. Rd6 {[%emt 0:00:02]} (72. Rc7+ $142 Kb8 73. d6 Be6 74. a6 Rf4+ 75. Kb5 Rf5+ 76. Bc5 Rf8 77. Re7) 72... Kb7 {[%emt 0:00:24]} 73. Kb5 {[%emt 0:00:11]} Kb8 {[%emt 0:00:30]} 74. Rd7 {[%emt 0:00:25] White threatens Ka6 and mate.} Bf7 {[%emt 0:00:34]} 75. Ka6 {[%emt 0:00:26]} Bxd5 {[%emt 0:00:33]} 76. Rxd5 {[%emt 0:00:09]} Ka8 {[%emt 0:00:04]} 77. Rd7 {[%emt 0:00:47]} Rc8 {[%emt 0:00:06]} 78. Ra7+ {[%emt 0:00:06]} Kb8 {[%emt 0:00:06]} 79. Rb7+ {[%emt 0:00:05]} Ka8 {[%emt 0:00:05]} 80. Bc7 {[%emt 0:00:10] Weighted Error Value: White=0.12 (very precise) /Black=0.18 (very precise) .  Mistake:       	White=3     	Black=5      Inaccurate:     	White=4     	Black=7      OK:         	White=26    	Black=25     Best:        	White=5     	Black=9      Strong:       	White=2     	---} 1-0

[Event "98th Caplin Hastings Masters 2024-25"]
[Site "Hastings"]
[Date "2025.01.02"]
[Round "8.8"]
[White "Gasanov, Eldar"]
[Black "Bozinakis, Pavlos"]
[Result "1-0"]
[ECO "E57"]
[WhiteElo "2476"]
[BlackElo "2271"]
[Annotator "TA"]
[PlyCount "69"]
[EventDate "2024.12.23"]
[EventType "swiss"]
[EventCountry "ENG"]
[SourceTitle "playchess.com"]
[Source "ChessBase"]
[SourceQuality "1"]
[TimeControl "5400+30"]

{[%evp 22,68,0,0,7,0,8,0,0,-33,-25,-59,-61,-75,-68,-81,-55,-80,-70,-85,-73,-85,-93,-89,-108,-112,-79,-70,-66,-80,158,-62,26,-77,0,0,0,-99,-83,-87,28,25,20,25,141,149,487,484,29999]} 1. d4 {[%emt 0:00:23]} Nf6 {[%emt 0:00:19]} 2. c4 {[%emt 0:00:14]} e6 {[%emt 0:00:17]} 3. Nc3 {[%emt 0:01:50]} d5 {[%emt 0:01:14]} 4. Bg5 {[%emt 0:00:35]} Be7 {[%emt 0:00:58]} 5. Nf3 {[%emt 0:00:51]} h6 {[%emt 0:00:51]} 6. Bh4 {[%emt 0:00:11]} dxc4 {[%emt 0:01:59]} 7. e3 {[%emt 0:04:55]} c5 {[%emt 0:00:24]} 8. Bxc4 {[%emt 0:03:49]} cxd4 {[%emt 0:00:24]} 9. exd4 {[%emt 0:00:13]} O-O {[%emt 0:00:53]} 10. O-O {[%emt 0:02:59][%cal Bh1f1,Bf1e1,Be1e4,Be4h4,Bh4h3,Bh3d3][%mdl 32]} Nc6 {[%emt 0:00:44]} 11. Re1 {[%emt 0:01:53]} b6 {[%emt 0:05:33]} 12. a3 {[%emt 0:20:30]} Bb7 {[%emt 0:00:41]} 13. Ba2 {[%emt 0:00:45]} Nh5 {[%emt 0:02:02]} 14. Re4 {[%emt 0:06:54]} Bxh4 {[%emt 0:07:17]} 15. Rxh4 {[%emt 0:00:35]} (15. Nxh4 $5 Nf6 16. Rxe6 $14) 15... Nf6 {[%emt 0:00:21]} 16. Rc1 {[%emt 0:10:43]} Ne7 {[%emt 0:04:13]} 17. Bb1 {[%emt 0:00:28]} Rc8 {[%emt 0:01:15]} 18. Ne5 {[%emt 0:03:55]} Re8 {[%emt 0:08:44]} 19. Rh3 {[%emt 0:01:31]} Nf5 {[%emt 0:04:37]} 20. Rd3 {[%emt 0:02:17]} Ne4 {[%emt 0:03:14]} 21. Qh5 {[%emt 0:05:06]} g6 {[%emt 0:05:04]} 22. Qh3 {[%emt 0:04:29]} Qg5 {[%emt 0:03:52]} (22... Nxd4 23. Re1 $16 (23. Qxh6 Nxc3 24. bxc3 Ne2+ 25. Kf1 Qf6 $16)) 23. Re1 {[%emt 0:01:39]} Nxc3 {[%emt 0:15:09]} (23... Qf4 {looks sharper.} 24. Nxe4 Bxe4 25. g3 Qg5) 24. bxc3 {[%emt 0:00:32]} Rc7 {[%emt 0:07:23]} 25. Nf3 {[%emt 0:05:42]} Qf4 $2 {[%emt 0:01:53] [#]} (25... Qf6 $17 26. g4 Nd6) 26. d5 $2 {[%emt 0:03:11]} ({Only move:} 26. g3 $1 $16 {[%cal Rg3f4][%mdl 512]} Qd6 27. g4) 26... Rce7 {[%emt 0:03:14]} (26... Bxd5 $2 27. Rxd5 Rb8 28. Rd3 $18) (26... h5 $15 27. Ba2 Rd8) 27. g3 {[%emt 0:05:50]} (27. d6 $1 $11 Rd7 (27... Nxd6 $2 28. Rd4 $18) 28. g3) 27... Qa4 {[%emt 0:06:08]} (27... exd5 $17 28. gxf4 Rxe1+ 29. Nxe1 Rxe1+ 30. Qf1 Rxf1+ 31. Kxf1 Ba6) 28. d6 $11 {[%emt 0:02:37]} Nxd6 {[%emt 0:02:15]} 29. Qxh6 {[%emt 0:04:06]} (29. Rxd6 $11 {remains equal.} Bxf3 30. Qxh6) 29... Nf5 $17 {[%emt 0:00:20]} (29... Qxa3 $2 30. Ng5 Rc7 31. Red1 $18 (31. Qh7+ Kf8 $18)) 30. Qg5 {[%emt 0:00:24] [#]} Rd7 {[%emt 0:01:58]} (30... Qxa3 31. g4 Kg7 32. Ne5 $16 (32. gxf5 exf5 33. Rf1 Re4 $16)) ({Black should try} 30... e5 $1 $17 {[%cal Re5e4]} 31. Rd2 Bxf3 32. Bxf5 e4 (32... Qxa3 $2 33. Bxg6 fxg6 34. Qxg6+ Kh8 35. Qf6+ Kg8 36. Qxf3 $18)) 31. Ne5 $1 $11 {[%emt 0:00:58]} Rxd3 {[%emt 0:01:14]} 32. Bxd3 $40 {[%emt 0:00:02][%mdl 128] Threatens to win with Qf6. White attacks.} Qxa3 {[%emt 0:05:18]} (32... Qa5 $1 $11) 33. Nxg6 $1 $16 {[%emt 0:02:07] White is more active.} Qxc3 $2 {[%emt 0:00:08][%mdl 8192]} (33... fxg6 $16 {is tougher.} 34. Bxf5 (34. Qxg6+ Ng7 $11) 34... Qxc3 35. Qxg6+ Kf8 36. Qh6+ (36. Rxe6 $2 {leads to mate.} Qc1+) 36... Qg7) 34. Ne5+ $18 {[%emt 0:00:56]} Kf8 {[%emt 0:01:19]} (34... Ng7 $18 35. Rc1 Qa3) 35. Nd7# {[%emt 0:01:20]} 1-0

[Event "98th Caplin Hastings Masters 2024-25"]
[Site "Hastings"]
[Date "2025.01.02"]
[Round "8.9"]
[White "Bin-Suhayl, Ieysaa"]
[Black "Kovchan, Alexander"]
[Result "1/2-1/2"]
[ECO "D85"]
[WhiteElo "2183"]
[BlackElo "2455"]
[Annotator "TA"]
[PlyCount "100"]
[EventDate "2024.12.23"]
[EventType "swiss"]
[EventCountry "ENG"]
[SourceTitle "playchess.com"]
[Source "ChessBase"]
[SourceQuality "1"]
[TimeControl "5400+30"]

{[%evp 17,100,41,49,33,58,68,64,64,79,0,0,0,0,-27,-19,-12,-18,-37,-16,-14,21,18,27,-35,131,135,159,117,134,146,139,145,139,139,138,138,157,54,48,35,33,44,21,17,25,28,40,0,136,110,108,89,118,103,225,63,65,68,62,55,60,34,42,0,0,-16,-9,-21,0,0,8,8,8,8,8,8,8,0,0,0,0,0,0,0,0]} 1. d4 {[%emt 0:11:40]} Nf6 {[%emt 0:00:08]} 2. c4 {[%emt 0:00:40]} g6 {[%emt 0:00:13]} 3. Nc3 {[%emt 0:00:04]} d5 {[%emt 0:00:15]} 4. cxd5 {[%emt 0:00:12]} Nxd5 {[%emt 0:00:08]} 5. e4 {[%emt 0:00:04]} Nxc3 {[%emt 0:00:06]} 6. bxc3 {[%emt 0:00:02]} Bg7 {[%emt 0:00:09]} 7. Nf3 {[%emt 0:00:04]} c5 {[%emt 0:01:53]} 8. Be3 {[%emt 0:00:39]} O-O {[%emt 0:01:13]} 9. Be2 {[%emt 0:00:08]} Qa5 {[%emt 0:03:19]} 10. O-O {[%emt 0:00:34]} Qxc3 {[%emt 0:03:31]} 11. Rc1 {[%emt 0:00:14][%cal Ba1c1,Bc1c5,Bc5b5][%mdl 32]} Qa3 {[%emt 0:00:26]} 12. Rxc5 {[%emt 0:00:08] White is slightly better.} (12. dxc5 Qxa2 13. Bc4 Qa5 $11) 12... Na6 {[%emt 0:01:36]} 13. Bc1 {[%emt 0:25:58]} (13. Rc1 $16) 13... Qxa2 $11 {[%emt 0:03:45]} 14. Bc4 {[%emt 0:01:00]} Qb1 {[%emt 0:06:57]} 15. Rb5 {[%emt 0:01:49]} Qxe4 {[%emt 0:02:01]} 16. Re1 {[%emt 0:08:29]} Qc6 {[%emt 0:02:03]} 17. Qb3 {[%emt 0:02:49]} Nc7 {[%emt 0:07:57]} 18. Rc5 {[%emt 0:09:28]} Qd7 {[%emt 0:05:48][%cal Oc7e6]} 19. Ba3 {[%emt 0:14:03]} e6 {[%emt 0:23:28][%cal Of8d8]} (19... Bxd4 $2 20. Nxd4 e6 21. Qc3 $18) 20. Ne5 {[%emt 0:03:19]} ({White should play} 20. d5 $1 $11) 20... Qxd4 $2 {[%emt 0:05:43]} (20... Qd8 $15) 21. Rd1 $16 {[%emt 0:06:22]} Qe4 {[%emt 0:09:48]} 22. Bd3 {[%emt 0:00:43]} Qf4 {[%emt 0:02:20]} 23. g3 {[%emt 0:00:13]} Qf6 {[%emt 0:01:35] ...Nd5 is the strong threat.} 24. Ng4 $1 {[%emt 0:00:16] White is much more active. The black rooks are passive.} Qd8 {[%emt 0:05:38] [#]} 25. Bxg6 $1 {[%emt 0:00:06][%mdl 512]} Nd5 {[%emt 0:02:46]} 26. Bb1 {[%emt 0:00:15][%cal Rd1d5] Strongly threatening Rdxd5.} b6 {[%emt 0:01:07] [#]} 27. Qc2 {[%emt 0:02:45]} f5 $14 {[%emt 0:00:15] [#]} 28. Rcxd5 {[%emt 0:01:54]} exd5 {[%emt 0:00:02]} 29. Bxf8 {[%emt 0:00:13]} Qxf8 {[%emt 0:00:19]} 30. Qc6 $36 {[%emt 0:02:28][%mdl 2048] Wards off Be6. White is pushing.} Rb8 {[%emt 0:03:41]} 31. Qxd5+ {[%emt 0:00:07]} Kh8 {[%emt 0:00:16][%cal Oc8b7,Bg8h8,Bh8g7,Bg7h6][%mdl 32]} 32. Ne5 {[%emt 0:01:21][%cal Bg4e5,Be5d3,Bd3f4][%mdl 1056] White has compensation.} Rb7 {[%emt 0:00:35] Against Nf7+. Black is weak on the light squares} (32... Bb7 $1 $11 33. Nf7+ (33. Qe6 Re8 $14) 33... Kg8 34. Nh6+ Kh8 35. Nf7+ Kg8 36. Nh6+ Kh8 37. Nf7+) 33. Ba2 $16 {[%emt 0:03:12]} Bf6 {[%emt 0:01:58]} 34. Rc1 {[%emt 0:02:01]} Kg7 {[%emt 0:01:42] [#] Prevents Nf7.} 35. Nd3 $1 {[%emt 0:02:59] Threatens to win with Qc6.} Bg5 {[%emt 0:03:17] [#]} (35... Kh8 $16 {was necessary.}) 36. Qe5+ $2 {[%emt 0:00:36]} (36. Rc6 $1 $18 Re7 37. h4) 36... Bf6 $14 {[%emt 0:00:15]} 37. Rc7+ {[%emt 0:00:50]} Rxc7 {[%emt 0:00:02]} 38. Qxc7+ {[%emt 0:00:04]} Kh6 {[%emt 0:00:47]} 39. Nf4 {[%emt 0:01:14]} Qc5 {[%emt 0:00:46]} 40. Qf7 {[%emt 0:00:31]} Qe7 {[%emt 0:00:13] The position is equal.} 41. Qh5+ {[%emt 0:00:47]} Kg7 {[%emt 0:00:02]} 42. Qd1 {[%emt 0:00:23] Prevents Qe1+} Be5 {[%emt 0:01:17]} 43. Qc1 {[%emt 0:00:44]} Bxf4 {[%emt 0:00:47]} 44. Qxc8 $11 {[%emt 0:00:18][%mdl 4096] Endgame. KQB-KQB} Qe1+ {[%emt 0:00:19]} 45. Kg2 {[%emt 0:00:02] aiming for Qg8+.} Qe4+ {[%emt 0:00:14]} 46. Kh3 {[%emt 0:00:36] Black must now prevent Qg8+.} Bd6 {[%emt 0:00:41]} 47. Qg8+ {[%emt 0:00:36]} Kh6 {[%emt 0:00:03]} 48. f4 {[%emt 0:00:29]} Be7 {[%emt 0:00:21] Wards off Qg5+} 49. Qf7 {[%emt 0:00:44]} Qe2 {[%emt 0:00:26][%cal Re2f1]} 50. Bc4 $1 {[%emt 0:00:39]} Qh5+ {[%emt 0:01:04] Weighted Error Value: White=0.18 (very precise) /Black=0.21 (precise) .  Missed win:     	White=1     	---        Mistake:       	White=3     	Black=3      Inaccurate:     	White=4     	Black=1      OK:         	White=13    	Black=15     Best:        	White=6     	Black=11     Strong:       	White=3     	---        Brilliant:      	White=2     	---} 1/2-1/2

[Event "98th Caplin Hastings Masters 2024-25"]
[Site "Hastings"]
[Date "2025.01.02"]
[Round "8.10"]
[White "Vestby-Ellingsen, Mads"]
[Black "Gu In-Jung"]
[Result "1-0"]
[ECO "B82"]
[WhiteElo "2383"]
[BlackElo "1987"]
[Annotator "TA"]
[PlyCount "73"]
[EventDate "2024.12.23"]
[EventType "swiss"]
[EventCountry "ENG"]
[SourceTitle "playchess.com"]
[Source "ChessBase"]
[SourceQuality "1"]
[TimeControl "5400+30"]

{[%evp 15,72,28,18,19,10,0,65,78,69,35,105,105,104,88,111,75,132,121,102,90,86,89,109,76,406,171,201,198,195,134,421,421,399,422,417,404,404,397,781,683,714,705,684,681,2170,2103,2467,2298,2365,2091,2561,2479,29996,29997,29997,29998,29998,29999,29999]} 1. e4 {[%emt 0:02:38]} c5 {[%emt 0:00:09]} 2. Nf3 {[%emt 0:00:11]} d6 {[%emt 0:00:07]} 3. d4 {[%emt 0:00:15]} cxd4 {[%emt 0:00:07]} 4. Nxd4 {[%emt 0:00:08]} Nf6 {[%emt 0:00:05]} 5. Nc3 {[%emt 0:00:09]} a6 {[%emt 0:00:05]} 6. f4 {[%emt 0:00:17]} e6 {[%emt 0:05:03]} 7. Qf3 {[%emt 0:00:17]} Qc7 {[%emt 0:01:38]} 8. Be3 {[%emt 0:03:21]} b5 {[%emt 0:03:15]} 9. a3 {[%emt 0:00:14]} Bb7 {[%emt 0:00:08]} 10. g4 {[%emt 0:00:31][%cal Bg2g4,Bg4g5][%mdl 32]} Nc6 {[%emt 0:01:55]} (10... d5 $11) 11. g5 $14 {[%emt 0:03:12]} Nd7 {[%emt 0:00:09]} 12. Nxc6 {[%emt 0:01:46]} Qxc6 {[%emt 0:00:30]} ({Black should try} 12... Bxc6 $14 13. Bd4 Rb8) 13. O-O-O $16 {[%emt 0:03:30]} Rc8 {[%emt 0:05:47]} 14. f5 {[%emt 0:17:11]} Ne5 {[%emt 0:00:24]} 15. Qf4 {[%emt 0:00:19]} Nc4 {[%emt 0:02:19] [#]} (15... exf5 $142 16. Bh3 (16. Qxf5 Be7 $14) 16... Rc7) 16. fxe6 $1 {[%emt 0:04:17]} fxe6 {[%emt 0:01:19][%cal Oc4b2] White must now prevent ...Nxb2!.} 17. Bxc4 {[%emt 0:07:59]} Qxc4 {[%emt 0:00:17]} 18. Qg4 {[%emt 0:05:09] White is more active.} e5 {[%emt 0:14:29] Dodges Rd4} 19. Kb1 $40 {[%emt 0:00:53][%mdl 128] Threatens to win with g6. White has strong attack.} a5 $2 {[%emt 0:01:54][%mdl 8192]} (19... Be7 $16 {is more resistant.}) 20. Nd5 {[%emt 0:04:57]} (20. Rd5 $142) 20... Bxd5 {[%emt 0:00:33]} 21. Rxd5 {[%emt 0:00:09]} Be7 {[%emt 0:01:44][%cal Ob5b4]} 22. Qe6 {[%emt 0:16:48]} ({Better is} 22. Rc1 $18) 22... Rc6 $2 {[%emt 0:08:22][%mdl 8192]} (22... Rf8 $16) 23. Rc1 $18 {[%emt 0:00:30]} a4 {[%emt 0:25:54]} 24. g6 {[%emt 0:00:33]} h6 {[%emt 0:00:30] Inhibits Bg5.} 25. Qf7+ {[%emt 0:07:24]} Kd7 {[%emt 0:00:42][%cal Be8d7,Bd7d8,Bd8c8,Bc8b8,Bb8a8][%mdl 32]} 26. Qxg7 {[%emt 0:00:17]} Rf8 $2 {[%emt 0:02:13]} (26... Qxe4 27. Qxh8 (27. Bxh6 Rxh6 28. Rxb5 Qh4 $16) (27. Rxb5 Rcc8 $18) 27... Qxd5) 27. Qxe5 {[%emt 0:00:48]} Rf1 {[%emt 0:00:19]} 28. Rxf1 {[%emt 0:00:17]} (28. Bxh6 $2 Qxc2+ (28... Bf6 $2 29. Rxd6+ Rxd6 30. Qh5 $19) 29. Ka2 Qb3+ (29... Rxc1 $2 30. Bxc1 Qc4+ 31. Kb1 $19) 30. Kb1 Bf6 31. Rxf1 Bxe5 32. Rf7+ Ke6 $19) 28... Qxf1+ {[%emt 0:00:08]} 29. Bc1 {[%emt 0:00:06]} Qg2 {[%emt 0:06:23]} 30. Qf5+ {[%emt 0:00:34]} (30. Bxh6 Qxc2+ 31. Ka2 b4 32. axb4 (32. Qf5+ Kc7 $11) 32... Qb3+ 33. Kb1 Qc2+ 34. Ka1 a3 $11) 30... Kd8 {[%emt 0:02:30]} 31. Rd2 {[%emt 0:00:18][%cal Bd5d2,Bd2d6,Bd6b6][%mdl 32]} ({Weaker is} 31. Bxh6 Qxc2+ 32. Ka1 b4 $16) 31... Qg1 {[%emt 0:00:22]} 32. Qf7 {[%emt 0:02:03]} Rc5 {[%emt 0:03:05] [#]} 33. h4 $1 {[%emt 0:00:12]} Bxh4 {[%emt 0:06:54]} (33... Kd7 34. g7) 34. Rxd6+ {[%emt 0:00:09]} Kc8 {[%emt 0:00:04]} 35. Qd7+ {[%emt 0:00:08]} Kb8 {[%emt 0:00:03]} 36. Rb6+ {[%emt 0:00:08]} Ka8 {[%emt 0:00:03]} 37. Qb7# {[%emt 0:02:01]} 1-0

[Event "98th Caplin Hastings Masters 2024-25"]
[Site "Hastings"]
[Date "2025.01.02"]
[Round "8.11"]
[White "Bilandzic, Ante"]
[Black "Roux, Baptiste"]
[Result "0-1"]
[ECO "A48"]
[WhiteElo "1912"]
[BlackElo "2338"]
[Annotator "TA"]
[PlyCount "58"]
[EventDate "2024.12.23"]
[EventType "swiss"]
[EventCountry "ENG"]
[SourceTitle "playchess.com"]
[Source "ChessBase"]
[SourceQuality "1"]
[TimeControl "5400+30"]

{[%evp 11,58,-9,2,-4,0,-7,0,0,-10,-12,0,-11,0,-2,-8,-25,-22,-54,-62,-69,-52,-58,-53,-92,-71,-124,-117,-215,-236,-231,-222,-209,-206,-247,-261,-406,-401,-635,-630,-636,-640,-1066,-1059,-1144,-1085,-1146,-1109,-1281,-1225]} 1. d4 {[%emt 1:31:00]} Nf6 {[%emt 0:07:56]} 2. Nf3 {[%emt 0:00:00]} g6 {[%emt 0:00:24]} 3. Bf4 {[%emt 0:00:00]} Bg7 {[%emt 0:00:15]} 4. e3 {[%emt 0:00:00]} d6 {[%emt 0:00:10]} 5. h3 {[%emt 0:00:00]} O-O {[%emt 0:00:10]} 6. Nbd2 {[%emt 0:00:00]} Nc6 {[%emt 0:00:34]} 7. Be2 {[%emt 0:00:00]} Nd7 {[%emt 0:00:11]} 8. Bg5 {[%emt 0:00:00]} Qe8 {[%emt 0:04:07]} 9. O-O {[%emt 0:00:00]} e5 {[%emt 0:01:21]} 10. c3 {[%emt 0:00:00]} h6 {[%emt 0:02:51]} 11. Bh4 {[%emt 0:00:00]} e4 {[%emt 0:05:02]} 12. Ne1 {[%emt 0:00:00]} f5 {[%emt 0:01:03]} 13. Bc4+ {[%emt 0:00:00]} Kh8 {[%emt 0:01:04]} 14. Qe2 {[%emt 0:00:00]} g5 {[%emt 0:03:03]} 15. Bg3 {[%emt 0:00:00]} Nf6 $36 {[%emt 0:05:29][%mdl 2048] Black has the initiative.} 16. Bb3 {[%emt 0:00:00]} Ne7 {[%emt 0:05:51]} 17. Rc1 {[%emt 0:00:00]} Ng6 {[%emt 0:03:23]} 18. c4 {[%emt 0:00:00]} (18. Bh2 $142) 18... f4 $17 {[%emt 0:02:15]} 19. exf4 {[%emt 0:00:00]} (19. Bh2 $17) 19... gxf4 $19 {[%emt 0:00:06]} 20. Bh2 {[%emt 0:00:00] [#]} f3 $1 {[%emt 0:05:27][%mdl 512]} 21. Qe3 {[%emt 0:00:00]} Nh4 {[%emt 0:03:26]} 22. Kh1 {[%emt 0:00:00]} Nf5 {[%emt 0:03:10]} 23. Qf4 {[%emt 0:00:00]} (23. Qc3 {was the only defense.}) 23... Nxd4 {[%emt 0:01:11] Strongly threatening ...Ne2.} 24. Bd1 {[%emt 0:00:00]} (24. Rd1 $142) 24... Ne2 {[%emt 0:04:09]} 25. Bxe2 {[%emt 0:00:00]} fxe2 {[%emt 0:00:06]} 26. Rg1 {[%emt 0:00:00] [#]} Ng4 $1 {[%emt 0:00:10][%mdl 512] Dodges Qe3} 27. Qxf8+ {[%emt 0:00:00]} (27. hxg4 Rxf4) 27... Qxf8 {[%emt 0:00:17]} 28. hxg4 {[%emt 0:00:00]} Qxf2 {[%emt 0:00:20]} 29. Nxe4 {[%emt 0:00:00]} Qe3 {[%emt 0:00:15]} 0-1